Cogmind - Beta 9.6 @@@ ROGUE MODE // 2020.07.30 @ 14:07:13 // Winter2019/RPGLIKE Player: Hermelin Result: Destroyed by Combat Programmer with EMDS Performance ------------- Evolutions (6) 3000 Regions Visited (22) 4400 Robots Destroyed (267) 1335 Value Destroyed (10294) 10294 Prototype IDs (241) 4820 Alien Tech Used (1) 200 Bonus (7684) 7684 TOTAL SCORE: 31733 Bonus ------- High Alert Combat Kills 985 Follower Combat Kills 1899 Entered Garrisons 400 Used RIF Installer 1000 Network Hubs Disabled 200 Aligned with FarCom 300 Met Data Miner 300 Used Data Conduit 3000 Built Enhanced Grunts 300 A7 Reached Mainframe 300 Met R17 at Cetus 500 Pursued by Intercept 1000 Friendly Fire -2500 Cogmind --------- Core Integrity 0/950 Matter 290/300 Energy 16/430 System Corruption 4% Temperature Cool (0) Movement Core (150) Ox2 Location -4/Factory Parts ------- > --- POWER (3) -------- Heavy Deuterium Engine Micro Fission Core > --- PROPULSION (4) --- Xenon Bombardment Thruster Improved Cesium-ion Thruster Improved Cesium-ion Thruster Improved Cesium-ion Thruster > --- UTILITY (12) ----- Experimental Signal Interpreter Advanced Terrain Scanner Improved Melee Analysis Suite Improved Melee Analysis Suite Advanced Melee Analysis Suite Microactuators Improved Light Armor Plating Improved Shield Generator Improved Hacking Suite System Mapper Ghost Barrier Quantum Router > --- WEAPON (6) ------- Ripper Ripper Ripper Phasing Sabre Makeshift Spear Lance > --- INVENTORY (4) ---- Improved Actuator Array Improved Powered Armor Improved System Backup Module Advanced Variable Charge Gun Peak State ------------ > --- POWER ------------ Heavy Deuterium Engine Micro Fission Core > --- PROPULSION ------- Xenon Bombardment Thruster Improved Cesium-ion Thruster Improved Cesium-ion Thruster Improved Cesium-ion Thruster > --- UTILITY ---------- Experimental Signal Interpreter Advanced Terrain Scanner Improved Melee Analysis Suite Improved Melee Analysis Suite Advanced Melee Analysis Suite Microactuators Improved Light Armor Plating Improved Shield Generator Improved Hacking Suite System Mapper Ghost Barrier Quantum Router > --- WEAPON ----------- Ripper Ripper Ripper Phasing Sabre Makeshift Spear Lance > --- INVENTORY -------- Improved Actuator Array Improved Powered Armor Improved System Backup Module Advanced Variable Charge Gun [Rating: 126] Favorites ----------- Power Light Deuterium Engine Engine Light Deuterium Engine Power Core Light Nuclear Core Propulsion Improved Cesium-ion Thruster Hover Unit Hover Unit Flight Unit Improved Cesium-ion Thruster Utility Advanced Terrain Scanner Device Advanced Terrain Scanner Storage Medium Battery Processor Melee Analysis Suite Hackware System Mapper Protection Improved Light Armor Plating Weapon Chainsword Energy Gun Small Laser Ballistic Gun Improved Assault Rifle Launcher Grenade Launcher Special Weapon Plasma Cutter Impact Weapon Heavy Hammer Slashing Weapon Chainsword Piercing Weapon Makeshift Spear Build | -11 -10 -10 -10 -9 -8 -8 -8 -8 -7 -7 -7 -7 -6 -6 -6 -6 -5 -5 -5 -5 -5 -4 ------- Run | Scr Mat Min Exi Min Mat Gar Mat Gar Fac Low Low Dat Pro Fac Low Low Fac Ext Cet Arc Hub Fac Slots Evolved 20 | 3 1 . . 2 6 . 1 . 2 . . 1 . . 1 . 1 . 1 . . 1 Power 1 | . . . . . 1 . . . . . . . . . . . . . . . . . Propulsion 3 | 1 . . . . 1 . . . 1 . . . . . . . . . . . . . Utility 11 | 1 1 . . 1 2 . 1 . . . . 1 . . 1 . 1 . 1 . . 1 Weapon 5 | 1 . . . 1 2 . . . 1 . . . . . . . . . . . . . Parts Attached 99 | 3 10 . 2 2 32 1 5 . 16 . 1 2 4 5 4 . 1 6 2 1 1 1 Power 10 | 1 1 . . . 4 . . . 1 . . . . . 2 . . 1 . . . . Engine 5 | 1 . . . . 2 . . . 1 . . . . . 1 . . . . . . . Core 5 | . 1 . . . 2 . . . . . . . . . 1 . . 1 . . . . Reactor . | . . . . . . . . . . . . . . . . . . . . . . . Propulsion 19 | . 1 . . . 10 . 1 . 5 . . . 1 1 . . . . . . . . Treads . | . . . . . . . . . . . . . . . . . . . . . . . Leg . | . . . . . . . . . . . . . . . . . . . . . . . Wheel . | . . . . . . . . . . . . . . . . . . . . . . . Hover 9 | . 1 . . . 6 . 1 . 1 . . . . . . . . . . . . . Flight 10 | . . . . . 4 . . . 4 . . . 1 1 . . . . . . . . Utility 40 | . 5 . . 1 10 1 2 . 6 . . 2 2 4 2 . 1 . 2 1 . 1 Device 13 | . 2 . . 1 5 . 1 . . . . . . 1 1 . 1 . 1 . . . Storage 1 | . 1 . . . . . . . . . . . . . . . . . . . . . Processor 8 | . 1 . . . 3 . . . 2 . . . . . 1 . . . . . . 1 Hackware 6 | . . . . . 1 . . . . . . 2 1 . . . . . 1 1 . . Protection 12 | . 1 . . . 1 1 1 . 4 . . . 1 3 . . . . . . . . Artifact . | . . . . . . . . . . . . . . . . . . . . . . . Weapon 30 | 2 3 . 2 1 8 . 2 . 4 . 1 . 1 . . . . 5 . . 1 . Energy Gun 7 | 2 2 . 2 . 1 . . . . . . . . . . . . . . . . . Energy Cannon . | . . . . . . . . . . . . . . . . . . . . . . . Ballistic Gun 2 | . . . . 1 1 . . . . . . . . . . . . . . . . . Ballistic Cannon . | . . . . . . . . . . . . . . . . . . . . . . . Launcher 1 | . 1 . . . . . . . . . . . . . . . . . . . . . Special Weapon 1 | . . . . . . . . . . . 1 . . . . . . . . . . . Impact Weapon 4 | . . . . . 2 . 1 . 1 . . . . . . . . . . . . . Slashing Weapon 13 | . . . . . 4 . 1 . 3 . . . . . . . . 5 . . . . Piercing Weapon 2 | . . . . . . . . . . . . . 1 . . . . . . . 1 . Special Melee Weapon . | . . . . . . . . . . . . . . . . . . . . . . . Unidentified Prototypes 8 | . . . . . 3 . . . 2 . . 2 1 . . . . . . . . . Parts Lost 9 | . . . . 1 4 . . . . . . . 3 . . . . . 1 . . . Power . | . . . . . . . . . . . . . . . . . . . . . . . Propulsion 2 | . . . . . 1 . . . . . . . 1 . . . . . . . . . Utility 5 | . . . . 1 1 . . . . . . . 2 . . . . . 1 . . . Weapon 2 | . . . . . 2 . . . . . . . . . . . . . . . . . Highest Loss Streak 3 | . . . . 1 3 . . . . . . . 2 . . . . . 1 . . . Average Slot Usage (%) 92 | . 80 100 76 91 90 93 96 100 97 94 94 95 92 96 94 95 95 95 94 95 95 94 Engine 5 | . 1 . . . 2 6 5 5 7 10 10 10 10 9 8 9 8 6 4 4 4 4 Core 4 | . 12 12 12 10 6 6 5 5 2 . . . . . . . . 1 4 4 4 4 Hover 8 | . 16 25 25 21 12 18 17 17 8 . . . . . . . . . . . . . Flight 9 | . . . . . 4 . . . 13 21 21 20 18 19 18 18 17 17 16 16 16 16 Device 12 | . 5 12 12 17 11 12 12 17 15 15 15 15 12 9 11 9 12 13 14 14 12 12 Processor 13 | . 6 12 12 10 12 18 17 17 15 15 15 14 10 9 10 13 13 13 12 12 12 14 Hackware 6 | . . . . . 5 . . . . . . . 11 14 13 13 13 13 13 14 16 16 Protection 5 | . 9 12 12 7 3 6 5 5 5 5 5 5 4 4 4 4 4 4 4 4 4 4 Energy Gun 5 | . 27 25 1 21 12 . . . . . . . . . . . . . . . . . Ballistic Gun 1 | . . . . 1 5 . . . . . . . . . . . . . . . . . Slashing Weapon 17 | . . . . . 8 25 27 29 26 26 26 25 25 23 22 22 21 21 20 20 18 16 Piercing Weapon 1 | . . . . . . . . . . . . . . 4 4 4 4 4 4 4 6 8 Naked Turns . | . . . . . . . . . . . . . . . . . . . . . . . Heaviest Build 46 | 7 11 11 11 12 24 26 33 33 44 41 42 42 41 37 41 39 41 44 46 46 44 44 Greatest Support 46 | 8 17 17 17 17 33 33 35 35 43 41 41 41 41 41 41 41 41 46 46 46 46 46 Greatest Overweight (x) 3 | . 1 . . . 2 . . . 1 . 1 1 1 . 3 . . 2 . . . 2 Average Overweight (x) . | . . . . . . . . . . . . . . . . . . . . . . . Largest Inventory Capacity 4 | 2 2 2 2 2 3 3 4 4 4 4 4 4 4 4 4 4 4 4 4 4 4 4 Average Capacity 3 | 2 2 2 2 2 2 3 3 4 4 4 4 4 4 4 4 4 4 4 4 4 4 4 Most Carried 4 | 2 2 2 2 2 3 3 4 4 4 4 4 4 4 4 4 4 4 4 4 4 4 4 Average Carried 3 | . 1 2 1 2 2 3 3 4 3 4 3 3 3 3 3 4 3 4 3 3 4 4 Final Capacity 4 | 2 2 2 2 2 3 3 4 4 4 4 4 4 4 4 4 4 4 4 4 4 4 4 Final Carried 4 | 2 2 2 2 2 3 3 4 4 4 4 4 4 4 4 4 4 4 4 4 4 4 4 Class Distribution -------------------- 21% | Scavenger-Scout 18% | Wizard-Scout 14% | Scavenger-Mutant 12% | Wizard-Sprinter 8% | Scavenger-Skirmisher 6% | Scout 6% | Sprinter 4% | Mutant 3% | Commander-Scout Dominant Class ---------------- Mutant | -10/Materials Scavenger-Mutant | -10/Mines Scavenger-Mutant | -10/Exiles Scavenger-Mutant | -9/Mines Scavenger-Skirmisher | -8/Materials Scavenger-Scout | -8/Garrison Scavenger-Scout | -8/Materials Scavenger-Scout | -8/Garrison Scout | -7/Factory Sprinter | -7/Lower Caves Sprinter | -7/Lower Caves Sprinter | -7/Data Miner Wizard-Sprinter | -6/Proximity Caves Wizard-Scout | -6/Factory Wizard-Sprinter | -6/Lower Caves Wizard-Sprinter | -6/Lower Caves Wizard-Scout | -5/Factory Wizard-Scout | -5/Extension Wizard-Scout | -5/Cetus Wizard-Scout | -5/Archives Wizard-Scout | -5/Hub_04(d) Wizard-Scout | -4/Factory Resources | -11 -10 -10 -10 -9 -8 -8 -8 -8 -7 -7 -7 -7 -6 -6 -6 -6 -5 -5 -5 -5 -5 -4 ----------- Run | Scr Mat Min Exi Min Mat Gar Mat Gar Fac Low Low Dat Pro Fac Low Low Fac Ext Cet Arc Hub Fac Matter Collected 1498 | 230 140 . . 61 572 10 50 . 160 . . 30 35 40 60 . 10 60 20 10 10 . Remotely . | . . . . . . . . . . . . . . . . . . . . . . . Salvage Created 12314 | . 434 . . 219 2387 99 1080 242 732 458 140 168 554 640 1244 704 341 1468 100 143 702 459 Parts 626 | . 33 . . 11 147 6 77 13 28 30 7 18 28 26 34 28 22 56 5 10 24 23 Haulers Intercepted 19 | . 2 . . . 5 . 5 . 1 . . . . . . . 1 2 . . 3 . Recyclers Shooed 3 | . 1 . . . . . . . . . . . . . . . . 2 . . . . Parts Field Recycled . | . . . . . . . . . . . . . . . . . . . . . . . Retrieved Matter . | . . . . . . . . . . . . . . . . . . . . . . . Parts Self-Destructed 106 | . . . . . . . . . . 30 . . 29 . 22 25 . . . . . . Prevented 8 | . . . . . . . . . . . 6 . 2 . . . . . . . . . Kills | -11 -10 -10 -10 -9 -8 -8 -8 -8 -7 -7 -7 -7 -6 -6 -6 -6 -5 -5 -5 -5 -5 -4 ------- Run | Scr Mat Min Exi Min Mat Gar Mat Gar Fac Low Low Dat Pro Fac Low Low Fac Ext Cet Arc Hub Fac Combat Hostiles Destroyed 204 | . 11 . . 8 53 4 17 6 9 11 2 3 13 9 10 9 2 15 3 . 10 9 Melee 143 | . . . . . 16 4 17 6 9 11 2 3 13 9 10 9 2 15 3 . 10 4 Guns 48 | . 8 . . 8 32 . . . . . . . . . . . . . . . . . AOE 13 | . 3 . . . 5 . . . . . . . . . . . . . . . . 5 Classes Destroyed 16 | . 6 . . . 5 . . . 1 . 2 . . . . 1 1 . . . . . Worker 14 | . 1 . . . 7 . . . . . . . . . . . 3 . . . 3 . Builder 2 | . . . . . . . . . . . . . . . . . 1 1 . . . . Hauler 19 | . 2 . . . 5 . 5 . 1 . . . . . . . 1 2 . . 3 . Recycler 4 | . . . . . 2 . . . . . . . . . . . . 2 . . . . Operator 11 | . 1 . . . 3 . . . 1 . . . . . . . 1 . . 4 1 . Watcher 11 | . 1 . . . 3 . 4 . . . . . . . . . . 2 . . . 1 Swarmer 36 | . 3 . . 4 11 2 . . . . . . 4 3 . . . . . . 4 5 Grunt 88 | . 8 . . 4 27 2 8 4 3 7 . . 8 . 4 7 . 3 2 . 1 . Brawler 7 | . . . . . 1 . 1 1 . . . . 1 . 3 . . . . . . . Duelist 4 | . . . . . 1 . 1 . . 1 . . . . 1 . . . . . . . Sentry 47 | . . . . . 12 . 5 1 5 1 . . . 6 2 . . 10 . . 3 2 Hunter 10 | . . . . . 1 . 2 . . 2 . . . . . . 2 . . . 1 2 Programmer 1 | . . . . . . . . . 1 . . . . . . . . . . . . . Behemoth 5 | . . . . . . . . . . . 1 . . . . 1 . 2 . . 1 . Cetus Guard 1 | . . . . . . . . . . . . . . . . . . . 1 . . . Enhanced Grunt 3 | . . . . . . . . . . . . 3 . . . . . . . . . . Thief 1 | . . . . . . . . . . . 1 . . . . . . . . . . . Mutant 1 | . . . . . . . . . . . . . . . . 1 . . . . . . Best Kill Streak 9 | . 5 . . 4 9 2 4 3 2 8 1 3 7 7 7 4 2 6 2 4 8 5 Combat Bots Only 8 | . 4 . . 4 6 2 3 3 2 8 1 3 7 7 7 4 2 5 2 . 5 5 Max Kills in Single Turn 5 | . 2 . . 1 4 1 1 1 1 1 1 1 1 2 1 1 1 2 1 1 1 5 Gunslinging . | . . . . . . . . . . . . . . . . . . . . . . . Exploded 5 | . 2 . . . 2 . . . . . . . . . . . . . . . . 5 Melee 2 | . . . . . 1 1 1 1 1 1 1 1 1 2 1 1 1 2 1 . 1 1 Uniques/NPCs Destroyed 2 | . . . . . . . . . . . . 1 . . . . . . 1 . . . Data Miner (-7/Data Miner) Revision 17 (-5/Cetus) Combat | -11 -10 -10 -10 -9 -8 -8 -8 -8 -7 -7 -7 -7 -6 -6 -6 -6 -5 -5 -5 -5 -5 -4 -------- Run | Scr Mat Min Exi Min Mat Gar Mat Gar Fac Low Low Dat Pro Fac Low Low Fac Ext Cet Arc Hub Fac Damage Taken 10096 | . 326 . . 424 2219 181 575 104 469 223 132 915 664 261 181 475 119 685 312 98 414 1319 Core 7296 | . 240 . . 307 1623 127 402 73 311 155 75 654 487 189 137 362 85 484 246 62 302 975 Absorbed by Shields 1940 | . . . . . . . 30 41 188 89 47 141 193 . 68 173 46 244 159 36 154 331 Redirected to Core 5848 | . 182 . . 190 1352 81 268 73 268 98 75 535 394 162 94 293 69 407 246 62 212 787 Core Remaining (%) 95 | 100 . . . 76 . . . 100 . . . . 100 . . 98 . . . . 100 . Volleys Fired 175 | . 50 . . 24 101 . . . . . . . . . . . . . . . . . Largest 4 | . 2 . . 2 4 . . . . . . . . . . . . . . . . . Hottest 153 | . 80 . . 80 153 . . . . . . . . . . . . . . . . . Shots Fired 413 | . 96 . . 48 269 . . . . . . . . . . . . . . . . . Gun 409 | . 92 . . 48 269 . . . . . . . . . . . . . . . . . Cannon . | . . . . . . . . . . . . . . . . . . . . . . . Launcher 4 | . 4 . . . . . . . . . . . . . . . . . . . . . Special . | . . . . . . . . . . . . . . . . . . . . . . . Kinetic 90 | . . . . . 90 . . . . . . . . . . . . . . . . . Thermal 249 | . 92 . . 48 109 . . . . . . . . . . . . . . . . . Explosive 4 | . 4 . . . . . . . . . . . . . . . . . . . . . Electromagnetic 70 | . . . . . 70 . . . . . . . . . . . . . . . . . Robot Hit Streak 24 | . 8 . . 16 24 . . . . . . . . . . . . . . . . . Robot Miss Streak 4 | . 3 . . 3 4 . . . . . . . . . . . . . . . . . Penetration Max . | . . . . . . . . . . . . . . . . . . . . . . . Secondary Targets 12 | . . . . 3 9 . . . . . . . . . . . . . . . . . Max Gunslinging Chain 1 | . . . . 1 1 . . . . . . . . . . . . . . . . . Shots Hit Robots 925 | . 64 . . 37 279 9 77 11 47 28 14 31 38 18 39 44 15 79 9 7 53 26 Core Hits 418 | . 32 . . 14 119 4 28 6 14 12 3 12 18 11 30 19 10 34 5 5 22 20 Critical Hits 25 | . . . . . 3 . . . 3 . . 1 1 . 1 5 . 6 1 . 3 1 Critical Kills 14 | . . . . . 3 . . . 1 . . 1 1 . 1 1 . 3 . . 2 1 Critical Parts Destroyed 10 | . . . . . . . . . 2 . . . . . . 3 . 3 1 . 1 . Melee Attacks 849 | . . . . . 99 11 95 15 68 37 17 31 45 24 53 53 26 88 67 10 73 37 Impact 8 | . . . . . 8 . . . . . . . . . . . . . . . . . Slashing 685 | . . . . . 91 11 95 15 68 37 17 31 43 11 18 22 9 71 60 9 51 26 Piercing 156 | . . . . . . . . . . . . . 2 13 35 31 17 17 7 1 22 11 Sneak Attacks 64 | . . . . . 12 1 8 . 4 2 . 1 . . . . 6 12 4 4 10 . Combat Hostiles 11 | . . . . . . 1 . . 3 2 . . . . . . . 5 . . . . Follow-up Attacks 196 | . . . . . 23 2 19 2 13 9 7 12 10 7 4 14 3 35 3 1 22 10 Damage Inflicted 38942 | . 919 . . 404 7202 416 3583 375 2137 1342 533 1290 1724 789 2680 2173 1091 4776 758 917 3536 2297 Guns 3913 | . 720 . . 404 2789 . . . . . . . . . . . . . . . . . Cannons . | . . . . . . . . . . . . . . . . . . . . . . . Explosions 1919 | . 199 . . . 647 . . . . . . . . . . . . . . . . 1073 Melee 33110 | . . . . . 3766 416 3583 375 2137 1342 533 1290 1724 789 2680 2173 1091 4776 758 917 3536 1224 Ramming . | . . . . . . . . . . . . . . . . . . . . . . . Kinetic 745 | . . . . . 745 . . . . . . . . . . . . . . . . . Thermal 2528 | . 720 . . 404 1404 . . . . . . . . . . . . . . . . . Explosive 1272 | . 199 . . . . . . . . . . . . . . . . . . . . 1073 Electromagnetic 1287 | . . . . . 1287 . . . . . . . . . . . . . . . . . Impact 155 | . . . . . 155 . . . . . . . . . . . . . . . . . Slashing 25568 | . . . . . 3611 416 3583 375 2137 1342 533 1290 1628 267 145 602 186 3951 758 802 2861 1081 Piercing 7387 | . . . . . . . . . . . . . 96 522 2535 1571 905 825 . 115 675 143 Highest Corruption 4 | . 4 4 4 4 . . . . . . . . . . . . . . 3 . . 4 Average Corruption 3 | . 2 4 4 4 . . . . . . . . . . . . . . 2 . . 2 Corruption Purged 3 | . . . . . . . . . . . . . . . . . . . 3 . . . Effects 22 | . 10 1 5 6 . . . . . . . . . . . . . . . . . . Message Errors 7 | . 3 . 3 1 . . . . . . . . . . . . . . . . . . Matter Fused 3 | . . . 1 2 . . . . . . . . . . . . . . . . . . Heat Flow Errors 2 | . . 1 1 . . . . . . . . . . . . . . . . . . . Energy Discharges 1 | . 1 . . . . . . . . . . . . . . . . . . . . . Data Loss (minor) 1 | . . . . 1 . . . . . . . . . . . . . . . . . . Targeting Errors 8 | . 6 . . 2 . . . . . . . . . . . . . . . . . . Overload Shots . | . . . . . . . . . . . . . . . . . . . . . . . Overflow Damage 3617 | . . . . . 595 139 409 . 192 84 33 12 143 6 218 225 128 503 122 288 480 40 Projectiles . | . . . . . . . . . . . . . . . . . . . . . . . Explosions 40 | . . . . . . . . . . . . . . . . . . . . . . 40 Melee 3577 | . . . . . 595 139 409 . 192 84 33 12 143 6 218 225 128 503 122 288 480 . Knockbacks 2 | . . . . . 2 . . . . . . . . . . . . . . . . . Impact 2 | . . . . . 2 . . . . . . . . . . . . . . . . . Kinetic . | . . . . . . . . . . . . . . . . . . . . . . . Secondary . | . . . . . . . . . . . . . . . . . . . . . . . Self-Inflicted Damage 187 | . 31 . . . 156 . . . . . . . . . . . . . . . . . Shots 5 | . 1 . . . 4 . . . . . . . . . . . . . . . . . Rammed . | . . . . . . . . . . . . . . . . . . . . . . . Targets Rammed . | . . . . . . . . . . . . . . . . . . . . . . . Kicked . | . . . . . . . . . . . . . . . . . . . . . . . Crushed . | . . . . . . . . . . . . . . . . . . . . . . . Highest Temperature 258 | . 75 239 258 . 251 . . . 8 . . . . 8 . . . . . . . . Average Temperature 54 | . 22 126 145 . 79 . . . 5 . . . . 6 . . . . . . . . Received Heat Transfer 2390 | . 132 . . 204 945 9 123 36 104 90 18 114 168 78 46 123 . 152 . 6 24 18 Effects 2 | . . . . . 2 . . . . . . . . . . . . . . . . . Interference 2 | . . . . . 2 . . . . . . . . . . . . . . . . . Siege Activations . | . . . . . . . . . . . . . . . . . . . . . . . Robots Corrupted . | . . . . . . . . . . . . . . . . . . . . . . . Combat Hostiles . | . . . . . . . . . . . . . . . . . . . . . . . Parts Fried 8 | . . . . . 7 . . . . . . . . . . . . 1 . . . . Impact Corruptions 1 | . . . . . 1 . . . . . . . . . . . . . . . . . Robots Melted . | . . . . . . . . . . . . . . . . . . . . . . . Combat Hostiles . | . . . . . . . . . . . . . . . . . . . . . . . Parts Melted 9 | . . . . 5 4 . . . . . . . . . . . . . . . . . Heat Transferred 4875 | . 1600 . . 900 2375 . . . . . . . . . . . . . . . . . Parts Sabotaged . | . . . . . . . . . . . . . . . . . . . . . . . Parts Stolen . | . . . . . . . . . . . . . . . . . . . . . . . Parts Stripped . | . . . . . . . . . . . . . . . . . . . . . . . Power Chain Reactions 5 | . . . . . 5 . . . . . . . . . . . . . . . . . Missiles Intercepted . | . . . . . . . . . . . . . . . . . . . . . . . Alert | -11 -10 -10 -10 -9 -8 -8 -8 -8 -7 -7 -7 -7 -6 -6 -6 -6 -5 -5 -5 -5 -5 -4 ------- Run | Scr Mat Min Exi Min Mat Gar Mat Gar Fac Low Low Dat Pro Fac Low Low Fac Ext Cet Arc Hub Fac Peak Influence 1143 | . 283 78 . 180 1143 938 624 273 626 . . . . 529 . . 614 381 572 407 992 726 Average Influence 340 | . 164 78 . 95 457 842 375 200 238 . . . . 334 . . 248 198 255 363 470 414 Maximum Alert Level 4 | . 1 . . . 4 3 2 1 2 . . . . 2 . . 2 1 2 2 3 3 Low Security (%) 41 | 100 65 100 . 100 35 . 15 25 59 . . . . 22 . . 63 50 51 4 30 25 Level 1 26 | . 34 . . . 17 . 43 74 19 . . . . 42 . . 16 49 16 45 17 23 Level 2 18 | . . . . . 16 . 41 . 20 . . . . 35 . . 19 . 31 49 25 38 Level 3 12 | . . . . . 29 100 . . . . . . . . . . . . . . 26 12 Level 4 . | . . . . . 1 . . . . . . . . . . . . . . . . . Level 5 . | . . . . . . . . . . . . . . . . . . . . . . . High Security . | . . . . . . . . . . . . . . . . . . . . . . . Max Security . | . . . . . . . . . . . . . . . . . . . . . . . Squads Dispatched 43 | . 3 . . . 16 . 3 . 3 . . . . 1 . . 1 2 . . 9 5 Investigation 14 | . 1 . . . 6 . 1 . 2 . . . . . . . . 1 . . 2 1 Extermination 1 | . . . . . . . . . 1 . . . . . . . . . . . . . Reinforcement 15 | . 2 . . . 3 . 2 . . . . . . 1 . . 1 1 . . 4 1 Assault . | . . . . . . . . . . . . . . . . . . . . . . . Garrison 8 | . . . . . 7 . . . . . . . . . . . . . . . 1 . Intercept 5 | . . . . . . . . . . . . . . . . . . . . . 2 3 Construction Impeded 3 | . . . . . 1 . . . . . . . . . . . . 1 . . 1 . Haulers Reinforced 1 | . . . . . . . . . . . . . . . . . . . . . 1 . Stealth | -11 -10 -10 -10 -9 -8 -8 -8 -8 -7 -7 -7 -7 -6 -6 -6 -6 -5 -5 -5 -5 -5 -4 --------- Run | Scr Mat Min Exi Min Mat Gar Mat Gar Fac Low Low Dat Pro Fac Low Low Fac Ext Cet Arc Hub Fac Distress Signals 12 | . 1 . . . 4 . 1 . . . . . . . . . . 1 2 . 1 2 Communications Jammed . | . . . . . . . . . . . . . . . . . . . . . . . Distress Signals . | . . . . . . . . . . . . . . . . . . . . . . . Times Spotted 322 | . 18 . . 10 91 9 26 6 11 11 2 4 13 16 10 9 4 30 15 5 18 14 Peak Tracking Total 9 | . 4 . . 6 9 4 4 2 6 4 1 4 4 4 7 4 2 8 5 2 6 5 Tactical Retreats 22 | . . . . 2 14 1 2 . . . . . . . . 1 . . . . . 2 Traps | -11 -10 -10 -10 -9 -8 -8 -8 -8 -7 -7 -7 -7 -6 -6 -6 -6 -5 -5 -5 -5 -5 -4 ------- Run | Scr Mat Min Exi Min Mat Gar Mat Gar Fac Low Low Dat Pro Fac Low Low Fac Ext Cet Arc Hub Fac Traps Triggered 6 | . 2 . . . 1 2 1 . . . . . . . . . . . . . . . Indirectly . | . . . . . . . . . . . . . . . . . . . . . . . Trap Hack Attempts . | . . . . . . . . . . . . . . . . . . . . . . . Triggered . | . . . . . . . . . . . . . . . . . . . . . . . Disarmed 26 | . . . . . 6 . . . . . . . . . . . . 20 . . . . Reprogrammed 6 | . . . . . . . . . . . . . . . . . . 1 . . 5 . Reused 1 | . . . . . . . . . . . . . . . . . . . . . 1 . Traps Extracted . | . . . . . . . . . . . . . . . . . . . . . . . Installed . | . . . . . . . . . . . . . . . . . . . . . . . Triggered 2 | . . . . . . . . . . . 1 . . . . . . . . . 1 . Machines | -11 -10 -10 -10 -9 -8 -8 -8 -8 -7 -7 -7 -7 -6 -6 -6 -6 -5 -5 -5 -5 -5 -4 ---------- Run | Scr Mat Min Exi Min Mat Gar Mat Gar Fac Low Low Dat Pro Fac Low Low Fac Ext Cet Arc Hub Fac Machines Disabled 16 | . 2 . . . 2 . . . . . . . . . . 1 . 1 1 1 2 6 Max in Single Turn 2 | . 1 . . . 1 . . . . . . . . . . 1 . . 1 . . 2 Garrison Access 8 | . . . . . . . . . 3 . . . . 1 . . . . . . 2 2 Network Hub 1 | . . . . . . . . . . . . . . . . . . . . . 1 . Machines Sabotaged 1 | . . . . . . . . . . . . . . . . . . . . . 1 . Garrisons Compromised . | . . . . . . . . . . . . . . . . . . . . . . . Overloaded Fab Kills . | . . . . . . . . . . . . . . . . . . . . . . . Fab Network Shutdowns 2 | . . . . . . . . . 1 . . . . . . . 1 . . . . . Hacking | -11 -10 -10 -10 -9 -8 -8 -8 -8 -7 -7 -7 -7 -6 -6 -6 -6 -5 -5 -5 -5 -5 -4 --------- Run | Scr Mat Min Exi Min Mat Gar Mat Gar Fac Low Low Dat Pro Fac Low Low Fac Ext Cet Arc Hub Fac Machines Accessed 100 | . 7 . 1 . 13 . 11 . 15 1 . 4 . 6 . . 6 13 5 1 9 8 Terminals 66 | . 4 . . . 8 . 9 . 5 1 . . . 4 . . 5 13 5 . 7 5 Fabricators 3 | . . . . . . . . . 2 . . . . . . . 1 . . . . . Repair Stations 2 | . 1 . . . . . . . 1 . . . . . . . . . . . . . Recycling Units 7 | . 2 . . . 2 . . . 3 . . . . . . . . . . . . . Scanalyzers 6 | . . . . . 2 . 1 . 1 . . . . 1 . . . . . . . 1 Garrison Access 10 | . . . . . 1 . 1 . 3 . . . . 1 . . . . . . 2 2 Total Hacks 580 | . 32 . 1 . 64 . 53 . 51 4 . 29 . 37 . . 41 86 26 25 57 74 Successful 449 | . 22 . 1 . 41 . 36 . 28 4 . 29 . 33 . . 37 77 25 25 44 47 Failed 127 | . 9 . . . 22 . 17 . 23 . . . . 4 . . 4 8 1 . 13 26 Catastrophic 12 | . . . . . 2 . 4 . 3 . . . . . . . . . . . 1 2 Database Lockouts 4 | . 1 . . . 1 . . . . . . . . . . . . 1 . . . 1 Manual 291 | . 15 . 2 . 40 . 22 . 17 . . . . 21 . . 28 52 19 1 29 45 Terminals 450 | . 22 . . . 53 . 45 . 21 4 . . . 31 . . 39 86 26 . 54 69 Fabricators 9 | . . . . . . . . . 7 . . . . . . . 2 . . . . . Repair Stations 5 | . 2 . . . . . . . 3 . . . . . . . . . . . . . Recycling Units 25 | . 8 . . . 5 . . . 12 . . . . . . . . . . . . . Scanalyzers 17 | . . . . . 4 . 5 . 2 . . . . 4 . . . . . . . 2 Garrison Access 19 | . . . . . 2 . 3 . 6 . . . . 2 . . . . . . 3 3 Terminal Hacks 286 | . 8 . 1 . 22 . 21 . 8 4 . 29 . 22 . . 28 53 15 25 23 27 Record 49 | . . . . . . . . . . 4 . 11 . . . . . . 9 25 . . Part Schematic 61 | . . . . . 1 . . . 1 . . 7 . 10 . . 14 14 1 . 6 7 Robot Schematic 14 | . . . . . . . 1 . . . . 8 . 3 . . 2 . . . . . Robot Analysis 9 | . 2 . . . 3 . 2 . 2 . . . . . . . . . . . . . Prototype ID Bank 26 | . . . . . 2 . 3 . 2 . . 3 . 2 . . 2 7 . . 3 2 Open Door 8 | . . . . . . . . . . . . . . . . . 1 6 1 . . . Level Access Points 1 | . . . . . . . . . . . . . . . . . 1 . . . . . Branch Access Points 6 | . . . . . 1 . 1 . 1 . . . . . . . 1 1 . . . 1 Emergency Access Points 1 | . . . . . . . . . . . . . . . . . 1 . . . . . Machine Index 1 | . . . . . . . . . . . . . . . . . . . . . 1 . Terminal Index 5 | . 1 . . . 1 . 1 . . . . . . . . . . 1 1 . . . Garrison Index 2 | . . . . . . . 1 . . . . . . . . . . 1 . . . . Alert Level 2 | . . . . . 2 . . . . . . . . . . . . . . . . . Unreport Threat 25 | . . . . . 1 . 5 . 1 . . . . 3 . . . 7 1 . 2 5 Locate Traps 20 | . 1 . . . 3 . 2 . . . . . . 1 . . 1 5 . . 4 3 Disarm Traps 6 | . . . . . 1 . . . . . . . . . . . . 5 . . . . Reprogram Traps 3 | . . . . . . . . . . . . . . . . . . 1 . . 2 . Patrol Status 1 | . . . . . . . . . . . . . . . . . . . 1 . . . Transport Status 2 | . . . . . . . . . . . . . . . . . . . . . . 2 Recall Investigation 4 | . . . . . 1 . . . . . . . . . . . 1 1 . . . 1 Recall Reinforcements 1 | . . . . . . . . . . . . . . . . . 1 . . . . . Hauler Manifests 6 | . . . . . 2 . 1 . . . . . . 1 . . 1 . . . . 1 Registered Components 6 | . 1 . . . 1 . 1 . 1 . . . . . . . . . . . 1 1 Registered Prototypes 3 | . . . . . . . 1 . . . . . . 1 . . . . . . . 1 Zone Layout 23 | . 3 . . . 3 . 2 . . . . . . 1 . . 2 4 1 . 4 3 EX-Prototype ID Bank 1 | . . . 1 . . . . . . . . . . . . . . . . . . . Fabricator Hacks 6 | . . . . . . . . . 4 . . . . . . . 2 . . . . . Load Schematic 3 | . . . . . . . . . 2 . . . . . . . 1 . . . . . Build 3 | . . . . . . . . . 2 . . . . . . . 1 . . . . . Repair Station Hacks 2 | . 1 . . . . . . . 1 . . . . . . . . . . . . . Scan Component 1 | . . . . . . . . . 1 . . . . . . . . . . . . . Refit 1 | . 1 . . . . . . . . . . . . . . . . . . . . . Recycling Unit Hacks 10 | . 3 . . . 3 . . . 4 . . . . . . . . . . . . . Report Inventory 6 | . 2 . . . 1 . . . 3 . . . . . . . . . . . . . Retrieve Components 4 | . 1 . . . 2 . . . 1 . . . . . . . . . . . . . Scanalyzer 15 | . . . . . 4 . 5 . . . . . . 4 . . . . . . . 2 Insert Component 8 | . . . . . 2 . 2 . . . . . . 3 . . . . . . . 1 Analyze 7 | . . . . . 2 . 3 . . . . . . 1 . . . . . . . 1 Garrison Access Hacks 10 | . . . . . 1 . 1 . 3 . . . . 1 . . . . . . 2 2 Unlock Access 2 | . . . . . 1 . 1 . . . . . . . . . . . . . . . Seal Access 8 | . . . . . . . . . 3 . . . . 1 . . . . . . 2 2 Unauthorized Hacks 120 | . 10 . . . 11 . 9 . 8 . . . . 6 . . 7 24 10 . 19 16 Terminals 109 | . 9 . . . 8 . 9 . 4 . . . . 5 . . 7 24 10 . 18 15 Track 30 | . 3 . . . 1 . 1 . . . . . . . . . 3 9 4 . 6 3 Assimilate 8 | . 1 . . . 1 . . . . . . . . 2 . . . 1 . . . 3 Botnet 54 | . 4 . . . 5 . 7 . 3 . . . . 2 . . 3 13 5 . 7 5 Detonate 5 | . . . . . . . . . . . . . . . . . . . . . 3 2 Operators 11 | . 1 . . . 1 . 1 . 1 . . . . 1 . . 1 1 1 . 1 2 Sabotage 1 | . . . . . . . . . . . . . . . . . . . . . 1 . Fabricators 1 | . . . . . . . . . 1 . . . . . . . . . . . . . Report 1 | . . . . . . . . . 1 . . . . . . . . . . . . . Repair Stations . | . . . . . . . . . . . . . . . . . . . . . . . Recycling Units 4 | . 1 . . . 2 . . . 1 . . . . . . . . . . . . . Reject 1 | . . . . . . . . . 1 . . . . . . . . . . . . . Mask 3 | . 1 . . . 2 . . . . . . . . . . . . . . . . . Scanalyzers . | . . . . . . . . . . . . . . . . . . . . . . . Garrison Access 6 | . . . . . 1 . . . 2 . . . . 1 . . . . . . 1 1 Reprogram 2 | . . . . . 1 . . . 1 . . . . . . . . . . . . . Watchers 4 | . . . . . . . . . 1 . . . . 1 . . . . . . 1 1 Data Cores Recovered 4 | . . . . . 1 . . . 1 . . . . . . . . 1 . . 1 . Used 3 | . . . . . 1 . . . . . . . . . . . . 1 . . 1 . Hacking Detections 66 | . 5 . . . 9 . 11 . 12 1 . . . 5 . . 4 6 4 . 5 4 Full Trace Events 8 | . . . . . 4 . 1 . 2 . . . . . . . . . . . 1 . Feedback Events . | . . . . . . . . . . . . . . . . . . . . . . . Feedback Blocked . | . . . . . . . . . . . . . . . . . . . . . . . Robot Schematics Acquired 14 | . . . . . . . 1 . . . . 8 . 3 . . 2 . . . . . Robots Built . | . . . . . . . . . . . . . . . . . . . . . . . Matter 219 | . . . . . . . . . 219 . . . . . . . . . . . . . Time 58 | . . . . . . . . . 58 . . . . . . . . . . . . . Total Robot Build Rating . | . . . . . . . . . . . . . . . . . . . . . . . Part Schematics Acquired 65 | . . . . . 3 . 2 . 1 . . 7 . 10 . . 13 14 1 . 6 8 Parts Built 3 | . . . . . . . . . 2 . . . . . . . 1 . . . . . Matter 380 | . . . . . . . . . 168 . . . . . . . 212 . . . . . Time 119 | . . . . . . . . . 84 . . . . . . . 35 . . . . . Total Part Build Rating 14 | . . . . . . . . . 8 . . . . . . . 6 . . . . . Parts Repaired . | . . . . . . . . . . . . . . . . . . . . . . . Time . | . . . . . . . . . . . . . . . . . . . . . . . Parts Recycled . | . . . . . . . . . . . . . . . . . . . . . . . Recycled Matter . | . . . . . . . . . . . . . . . . . . . . . . . Retrieved Matter . | . . . . . . . . . . . . . . . . . . . . . . . Retrieved Components 25 | . 3 . . . 19 . . . 3 . . . . . . . . . . . . . Parts Scanalyzed 6 | . . . . . 2 . 2 . . . . . . 1 . . . . . . . 1 Part Schematics Acquired 6 | . . . . . 2 . 2 . . . . . . 1 . . . . . . . 1 Parts Damaged 1 | . . . . . . . 1 . . . . . . . . . . . . . . . Bothacking | -11 -10 -10 -10 -9 -8 -8 -8 -8 -7 -7 -7 -7 -6 -6 -6 -6 -5 -5 -5 -5 -5 -4 ------------ Run | Scr Mat Min Exi Min Mat Gar Mat Gar Fac Low Low Dat Pro Fac Low Low Fac Ext Cet Arc Hub Fac Used RIF Installer 2 | . . . . . . 1 . 1 . . . . . . . . . . . . . . Coupler Efficiency 1 | . . . . . . . . 1 . . . . . . . . . . . . . . Robots Hacked . | . . . . . . . . . . . . . . . . . . . . . . . Non-combat . | . . . . . . . . . . . . . . . . . . . . . . . Combat . | . . . . . . . . . . . . . . . . . . . . . . . Robot Hacks Applied . | . . . . . . . . . . . . . . . . . . . . . . . Relay Couplers Released . | . . . . . . . . . . . . . . . . . . . . . . . Robots Rewired 25 | . . . . . . . . . . . . . . . 2 . . 23 . . . . Allies Hacked . | . . . . . . . . . . . . . . . . . . . . . . . Hacks Repelled . | . . . . . . . . . . . . . . . . . . . . . . . Allies | -11 -10 -10 -10 -9 -8 -8 -8 -8 -7 -7 -7 -7 -6 -6 -6 -6 -5 -5 -5 -5 -5 -4 -------- Run | Scr Mat Min Exi Min Mat Gar Mat Gar Fac Low Low Dat Pro Fac Low Low Fac Ext Cet Arc Hub Fac Total Allies 44 | . . . . . 3 . . . . . . . . 2 2 . . 30 5 . . 2 Largest Group 24 | . . . . . 2 2 2 . . . . . . 2 4 4 4 24 19 13 11 2 Highest-Rated Group 1010 | . . . . . 32 32 32 . . . . . . 52 111 111 111 848 1010 761 594 181 Highest-Rated Ally 156 | . . . . . 16 16 16 . . . . . . 26 30 30 30 156 137 137 94 94 Total Orders 19 | . . . . . 2 . . . . . . . . . . . . 1 14 . 2 . GOTO 12 | . . . . . 1 . . . . . . . . . . . . 1 8 . 2 . FOLLOW 7 | . . . . . 1 . . . . . . . . . . . . . 6 . . . Ally Attacks 290 | . . . . . 5 10 7 . . . . . . . . . 15 74 101 12 64 2 Total Damage 7588 | . . . . . 56 136 121 . . . . . . . . . 352 2105 2592 298 1833 95 Kills 58 | . . . . . 1 3 1 . . . . . . . . . 3 13 19 4 14 . Allies Corrupted 1 | . . . . . . . . . . . . . . . . . . . . . 1 . Allies Melted . | . . . . . . . . . . . . . . . . . . . . . . . Intel | -11 -10 -10 -10 -9 -8 -8 -8 -8 -7 -7 -7 -7 -6 -6 -6 -6 -5 -5 -5 -5 -5 -4 ------- Run | Scr Mat Min Exi Min Mat Gar Mat Gar Fac Low Low Dat Pro Fac Low Low Fac Ext Cet Arc Hub Fac Robot Analysis Total 124 | . 2 . . . 3 . 2 . 2 . . 115 . . . . . . . . . . Derelict Logs Recovered 10 | . . . . 2 . . . . . 1 2 . 2 . 2 1 . . . . . . Drone Launches . | . . . . . . . . . . . . . . . . . . . . . . . Drone Recoveries . | . . . . . . . . . . . . . . . . . . . . . . . Exploration | -11 -10 -10 -10 -9 -8 -8 -8 -8 -7 -7 -7 -7 -6 -6 -6 -6 -5 -5 -5 -5 -5 -4 ------------- Run | Scr Mat Min Exi Min Mat Gar Mat Gar Fac Low Low Dat Pro Fac Low Low Fac Ext Cet Arc Hub Fac Turns Passed 8791 | 24 518 13 259 198 2114 155 724 204 882 196 256 193 253 113 444 410 252 570 403 101 301 208 Spaces Moved 11259 | 35 477 20 381 152 1444 133 704 145 1235 410 585 223 356 267 929 819 458 764 488 223 512 499 Core 248 | 35 205 . . . . . . . . . . . . . 1 . . 5 . . . 2 Treads . | . . . . . . . . . . . . . . . . . . . . . . . Legs . | . . . . . . . . . . . . . . . . . . . . . . . Wheels . | . . . . . . . . . . . . . . . . . . . . . . . Hover 2750 | . 272 20 381 152 740 133 704 145 203 . . . . . . . . . . . . . Flight 8261 | . . . . . 704 . . . 1032 410 585 223 356 267 928 819 458 759 488 223 512 497 Fastest Speed 27 | 50 50 66 66 66 34 52 52 52 27 27 27 27 27 27 27 27 27 27 27 27 27 27 Average Speed 38 | 50 66 66 66 66 59 52 52 52 30 27 28 46 30 27 27 27 27 27 27 27 27 29 Slowest Speed 240 | 50 100 66 66 66 240 52 52 52 100 27 95 95 94 27 200 27 27 150 27 27 27 150 Overloaded Moves . | . . . . . . . . . . . . . . . . . . . . . . . Propulsion Burnouts . | . . . . . . . . . . . . . . . . . . . . . . . Robots Hopped 6 | . . . . . 4 . . . . . . . . . . . . 1 . . . 1 Cave-ins Triggered 2 | . . . . . . . . . . . . . . . . . . . 2 . . . Exploration Rate (%) 53 | 3 62 9 77 35 90 33 78 39 37 65 78 80 51 10 80 91 11 79 81 78 48 18 Regions Visited 22 Branch Regions 13 Pre-discovered Areas 26 | . . . . 1 . . . . . . . 24 . . 1 . . . . . . . Known Exits Taken 19 | . 1 1 1 1 1 . 1 . 1 1 1 1 1 1 1 1 1 1 1 1 1 . Unknown Exits Taken 1 | 1 . . . . . . . . . . . . . . . . . . . . . . Scrap Searched 13 | . . . . . . . . . . 1 3 . 3 . 2 4 . . . . . . Spaces Dug 72 | . . . . . 2 . 2 . 12 . 1 . . 2 . . 5 . 7 . 7 34 Terrain Destroyed 141 | . 50 . . . 16 . 2 . 12 . 1 . . 2 . . 5 . 7 . 7 39 Melee 44 | . . . . . 2 . 2 . 12 . 1 . . 2 . . 5 . 7 . 7 6 Projectile . | . . . . . . . . . . . . . . . . . . . . . . . AOE 97 | . 50 . . . 14 . . . . . . . . . . . . . . . . 33 Actions | -11 -10 -10 -10 -9 -8 -8 -8 -8 -7 -7 -7 -7 -6 -6 -6 -6 -5 -5 -5 -5 -5 -4 --------- Run | Scr Mat Min Exi Min Mat Gar Mat Gar Fac Low Low Dat Pro Fac Low Low Fac Ext Cet Arc Hub Fac Total 14795 | 39 581 19 388 200 2385 209 993 261 1684 471 668 291 465 297 1093 970 573 1070 715 256 631 536 Wait 2175 | . 22 . 2 12 624 35 185 99 357 25 70 20 38 2 96 99 95 131 172 23 53 15 Move 11224 | 34 476 19 380 151 1436 131 703 143 1234 409 584 222 355 266 928 818 457 761 487 222 511 497 Hop 5 | . . . . . 3 . . . . . . . . . . . . 1 . . . 1 Pick Up 37 | 2 2 . 1 . 7 . 5 . 3 . 3 2 2 3 1 . 2 . 2 2 . . Fast Attach 62 | 3 6 . 2 2 23 . 2 . 9 . . 2 3 . 2 . . 6 . . 1 1 Attach 13 | . . . . . 4 . 1 . 1 . 1 . 1 1 1 . 1 . 2 . . . Detach 3 | . 1 . . . 1 . . . 1 . . . . . . . . . . . . . Swap 25 | . 4 . . . 5 1 2 . 6 . . . . 5 1 . . . . 1 . . Drop 75 | . 7 . 3 . 23 . 6 . 14 . 2 4 1 4 1 . 1 6 . 2 1 . Fire 175 | . 50 . . 24 101 . . . . . . . . . . . . . . . . . Melee 506 | . . . . . 66 7 60 9 46 19 8 19 28 13 35 31 17 44 37 6 39 22 Ram . | . . . . . . . . . . . . . . . . . . . . . . . Kick . | . . . . . . . . . . . . . . . . . . . . . . . Crush . | . . . . . . . . . . . . . . . . . . . . . . . Escape Stasis 26 | . . . . . . 26 . . . . . . . . . . . . . . . . Rewire 74 | . . . . . . . . . . . . . . . 4 . . 70 . . . . Trap . | . . . . . . . . . . . . . . . . . . . . . . . Miscellaneous 395 | . 13 . . 11 92 9 29 10 13 18 . 22 37 3 24 22 . 51 15 . 26 . Route ------- -11/Scrapyard -10/Materials (discovered 3 exits: *Mat x2 / *Min) -10/Mines -10/Exiles -9/Mines -8/Materials (discovered 3 exits: *Fac x2 / Gar) -8/Garrison -8/Materials (discovered 3 exits: *Fac x2 / Gar) -8/Garrison -7/Factory (discovered 6 exits: *Fac x3 / Sto / *Low x2) -7/Lower Caves -7/Lower Caves (discovered 2 exits: *Fac / *Dat) -7/Data Miner -6/Proximity Caves -6/Factory (discovered 2 exits: Fac / *Low) -6/Lower Caves (discovered 2 exits: *Low / *Zio) -6/Lower Caves (discovered 2 exits: *Fac / *Zio) -5/Factory (discovered 8 exits: Fac x4 / Upp x2 / *Ext x2) -5/Extension (discovered 3 exits: *Fac x2 / *Cet) -5/Cetus (discovered 2 exits: *Fac / *Arc) -5/Archives (discovered 3 exits: *Fac / *Hub x2) -5/Hub_04(d) (discovered 3 exits: *Fac x3) -4/Factory (discovered 3 exits: Upp x2 / Arm) History --------- Turn | Location | Event 1 | -11/Scrapyard | Upgraded with Propulsion slot (x1) 1 | -11/Scrapyard | Upgraded with Utility slot (x1) 1 | -11/Scrapyard | Upgraded with Weapon slot (x1) 4 | -11/Scrapyard | Discovered new exit (range 16) 25 | -11/Scrapyard | Entered Materials 52 | -10/Materials | Discovered new exit (range 16) 52 | -10/Materials | Discovered new exit (range 12) 125 | -10/Materials | Discovered new exit (range 16) 261 | -10/Materials | Central database locked down 300 | -10/Materials | Build established: Mutant 365 | -10/Materials | Identified exit to Materials 462 | -10/Materials | Reached level 2 467 | -10/Materials | Upgraded with Utility slot (x1) 543 | -10/Materials | Identified exit to Mines 543 | -10/Materials | Entered Mines 553 | -10/Mines | Deemed a non-threat by the Exiles lab entrance 553 | -10/Mines | Discovered new exit (range 5) 555 | -10/Mines | Identified exit to Exiles 556 | -10/Mines | Entered Exiles 565 | -10/Exiles | Discovered new exit (range 16) 574 | -10/Exiles | Met 8R-AWN 585 | -10/Exiles | Met EX-HEX 602 | -10/Exiles | Met EX-BIN 607 | -10/Exiles | Build established: Scavenger-Mutant 612 | -10/Exiles | Aligned with FarCom system 613 | -10/Exiles | Given EX-Vault access code 629 | -10/Exiles | Opened EX-Vault 636 | -10/Exiles | Found Cloak of Protection 651 | -10/Exiles | Warned to stay clear of 0b10 Research branches 671 | -10/Exiles | Met EX-DEC 696 | -10/Exiles | Visited The Gauntlet 814 | -10/Exiles | Identified exit to Mines 815 | -10/Exiles | Left Exiles lab with Cloak of Protection 815 | -10/Exiles | Entered Mines 822 | -9/Mines | Received a Rocket Launcher from a helpful Derelict 835 | -9/Mines | Reached level 3 879 | -9/Mines | Upgraded with Utility slot (x1) 879 | -9/Mines | Upgraded with Weapon slot (x1) 895 | -9/Mines | Discovered new exit (range 15) 903 | -9/Mines | Identified exit to Materials 910 | -9/Mines | Learned location of Zion (-6) 912 | -9/Mines | Learned Materials stockpile data 1013 | -9/Mines | Entered Materials 1015 | -8/Materials | Reached level 4 1017 | -8/Materials | Upgraded with Power slot (x1) 1017 | -8/Materials | Upgraded with Weapon slot (x1) 1514 | -8/Materials | Reached level 5 1523 | -8/Materials | Upgraded with Propulsion slot (x1) 1608 | -8/Materials | Garrison activated, responded to threat 1688 | -8/Materials | Build established: Scavenger-Skirmisher 1734 | -8/Materials | Garrison activated, responded to threat 1810 | -8/Materials | Core integrity fell below 50% 1850 | -8/Materials | Reached level 6 1851 | -8/Materials | Core integrity fell below 20% 2001 | -8/Materials | Upgraded with Utility slot (x1) 2081 | -8/Materials | Garrison activated, responded to threat 2151 | -8/Materials | Reached level 7 2187 | -8/Materials | Lost 3 parts (1n1u1w) 2379 | -8/Materials | Central database locked down 2434 | -8/Materials | Reached level 8 2437 | -8/Materials | Upgraded with Utility slot (x1) 2619 | -8/Materials | Discovered new exit (range 5) 2620 | -8/Materials | Identified exit to Factory 2854 | -8/Materials | Discovered exit to Factory (range 18) 2905 | -8/Materials | Build established: Scavenger-Scout 2990 | -8/Materials | Reached level 9 3002 | -8/Materials | Upgraded with Weapon slot (x1) 3061 | -8/Materials | Identified exit to Garrison 3127 | -8/Materials | Entered Garrison 3127 | -8/Garrison | Accompanied by 2 allies 3129 | -8/Garrison | Reached level 10 3132 | -8/Garrison | Installed Relay Interface Framework 3176 | -8/Garrison | Triggered checkpoint 3246 | -8/Garrison | Discovered new exit (range 13) 3265 | -8/Garrison | Identified exit to Materials 3282 | -8/Garrison | Entered Materials 3282 | -8/Materials | Accompanied by 2 allies 3321 | -8/Materials | Reached level 11 3513 | -8/Materials | Discovered exit to Factory (range 17) 3799 | -8/Materials | Discovered exit to Factory (range 12) 3851 | -8/Materials | Reached level 12 3863 | -8/Materials | Upgraded with Utility slot (x1) 3928 | -8/Materials | Identified exit to Garrison 4006 | -8/Materials | Entered Garrison 4050 | -8/Garrison | Triggered checkpoint 4077 | -8/Garrison | Discovered exit to Factory (range 19) 4204 | -8/Garrison | Expanded RIF knowledge: Coupler Efficiency 4210 | -8/Garrison | Entered Factory 4212 | -7/Factory | Reached level 13 4212 | -7/Factory | Upgraded with Propulsion slot (x1) 4501 | -7/Factory | Identified exit to Storage 4501 | -7/Factory | Identified exit to Lower Caves 4702 | -7/Factory | Reached level 14 4706 | -7/Factory | Upgraded with Weapon slot (x1) 4778 | -7/Factory | Discovered new exit (range 18) 4794 | -7/Factory | Discovered new exit (range 20) 4798 | -7/Factory | Identified exit to Factory 4832 | -7/Factory | Build established: Scout 4909 | -7/Factory | Local fabrication network quarantined 4933 | -7/Factory | Fabricated Powered Armor (x2) 4993 | -7/Factory | Discovered exit to Factory (range 15) 5092 | -7/Factory | Entered Lower Caves 5097 | -7/Lower Caves | Learned Factory emergency access door positions 5098 | -7/Lower Caves | Encountered a Warlord checkpoint 5186 | -7/Lower Caves | Reached level 15 5189 | -7/Lower Caves | Attracted the attention of an 0b10 base 5213 | -7/Lower Caves | Destroyed 8 combat bots 5213 | -7/Lower Caves | Learned location of 1 exit from Proximity Caves 5213 | -7/Lower Caves | Learned Extension trap positions 5213 | -7/Lower Caves | Learned Extension terminal intel 5218 | -7/Lower Caves | Attracted the attention of an 0b10 checkpoint 5253 | -7/Lower Caves | Discovered new exit (range 11) 5256 | -7/Lower Caves | Identified exit to Lower Caves 5288 | -7/Lower Caves | Entered another Lower Caves area 5288 | -7/Lower Caves | Discovered exit to Factory (range 14) 5292 | -7/Lower Caves | Learned Factory emergency access door positions 5317 | -7/Lower Caves | Encountered a Warlord checkpoint 5381 | -7/Lower Caves | Build established: Sprinter 5408 | -7/Lower Caves | Spotted B-75 Beast 5419 | -7/Lower Caves | Destroyed B-75 Beast 5429 | -7/Lower Caves | Learned 12 Factory zone layouts 5444 | -7/Lower Caves | Discovered new exit (range 10) 5446 | -7/Lower Caves | Identified exit to Data Miner 5524 | -7/Lower Caves | Found Alien Artifact 5544 | -7/Lower Caves | Entered Data Miner 5544 | -7/Data Miner | Discovered new exit (range 6) 5549 | -7/Data Miner | Identified exit to Proximity Caves 5562 | -7/Data Miner | Met Data Miner 5582 | -7/Data Miner | Learned location of Section 7 (-2) 5582 | -7/Data Miner | Acquired the access code to Warlord's prototype stash 5597 | -7/Data Miner | Received God Mode back door access code from Data Miner 5607 | -7/Data Miner | Destroyed Data Miner 5609 | -7/Data Miner | Reached level 16 5609 | -7/Data Miner | Interfaced with the Data Conduit 5653 | -7/Data Miner | Core integrity fell below 50% 5661 | -7/Data Miner | Core integrity fell below 20% 5716 | -7/Data Miner | Found Prototype Hackware 5716 | -7/Data Miner | Identified System Mapper 5718 | -7/Data Miner | Found Prototype Hackware 5720 | -7/Data Miner | Upgraded with Utility slot (x1) 5720 | -7/Data Miner | Found Prototype Hackware 5720 | -7/Data Miner | Identified Deep Network Scanner 5722 | -7/Data Miner | Found Prototype Hackware 5737 | -7/Data Miner | Entered Proximity Caves 5751 | -6/Proximity Caves | Learned location of 1 exit from Lower Caves 5789 | -6/Proximity Caves | Reached level 17 5892 | -6/Proximity Caves | Destroyed 7 combat bots 5923 | -6/Proximity Caves | Identified Ghost Barrier 5990 | -6/Proximity Caves | Entered Factory 5991 | -6/Factory | Identified exit to Lower Caves 5992 | -6/Factory | Identified exit to Factory 5992 | -6/Factory | Reached level 18 5994 | -6/Factory | Loaded intel: 296 machine locations 6023 | -6/Factory | Identified Core Expander 6023 | -6/Factory | Installed Core Expander, added new Power slot 6025 | -6/Factory | Identified Quantum Router 6031 | -6/Factory | Found Exp. Signal Interpreter 6101 | -6/Factory | Destroyed 7 combat bots 6103 | -6/Factory | Entered Lower Caves 6103 | -6/Lower Caves | Accompanied by 2 allies 6104 | -6/Lower Caves | Identified exit to Lower Caves 6106 | -6/Lower Caves | Upgraded with Utility slot (x1) 6109 | -6/Lower Caves | Encountered a Warlord checkpoint 6127 | -6/Lower Caves | Attracted the attention of an 0b10 checkpoint 6134 | -6/Lower Caves | A Derelict revealed a hidden shortcut to a safe place 6220 | -6/Lower Caves | Learned location of 1 exit from Proximity Caves 6283 | -6/Lower Caves | Attracted the attention of an 0b10 outpost 6295 | -6/Lower Caves | Reached level 19 6328 | -6/Lower Caves | Destroyed 7 combat bots 6386 | -6/Lower Caves | Build established: Wizard-Sprinter 6440 | -6/Lower Caves | Identified exit to Zion 6547 | -6/Lower Caves | Entered another Lower Caves area 6547 | -6/Lower Caves | Accompanied by 4 allies 6550 | -6/Lower Caves | Learned Factory garrison access intel 6689 | -6/Lower Caves | Spotted B-75 Beast 6705 | -6/Lower Caves | Discovered exit to Zion (range 13) 6781 | -6/Lower Caves | Destroyed B-75 Beast 6839 | -6/Lower Caves | Attacked by a delusional Derelict stockpiling parts 6878 | -6/Lower Caves | Discovered exit to Factory (range 8) 6957 | -6/Lower Caves | Entered Factory 6957 | -5/Factory | Accompanied by 4 allies 6959 | -5/Factory | Loaded intel: 272 machine locations 6959 | -5/Factory | Reached level 20 6960 | -5/Factory | Loaded intel: 4 garrison access locations 6961 | -5/Factory | Upgraded with Utility slot (x1) 6972 | -5/Factory | Identified exit to Upper Caves 6972 | -5/Factory | Identified exit to Extension 6972 | -5/Factory | Identified exit to Factory 7156 | -5/Factory | Fabricated Imp. Powered Armor (x1) 7159 | -5/Factory | Local fabrication network quarantined 7209 | -5/Factory | Entered Extension 7209 | -5/Extension | Accompanied by 3 allies 7210 | -5/Extension | Loaded intel: 26 trap records 7211 | -5/Extension | Loaded intel: 33 machine locations 7211 | -5/Extension | Reached level 21 7212 | -5/Extension | Loaded intel: 13 terminal locations 7257 | -5/Extension | Build established: Wizard-Scout 7306 | -5/Extension | Identified exit to Cetus 7340 | -5/Extension | Central database locked down 7341 | -5/Extension | Rescued a captive Derelict 7341 | -5/Extension | Rescued a captive Derelict 7350 | -5/Extension | Rescued A7 7361 | -5/Extension | Rescued a captive Derelict 7368 | -5/Extension | Spotted B-75 Beast 7370 | -5/Extension | Spotted B-75 Beast 7412 | -5/Extension | Reached level 22 7432 | -5/Extension | Destroyed B-75 Beast 7443 | -5/Extension | Destroyed B-75 Beast 7448 | -5/Extension | Discovered exit to Factory (range 13) 7497 | -5/Extension | Rescued a captive Derelict 7497 | -5/Extension | Rescued a captive Derelict 7669 | -5/Extension | Rescued a captive Derelict 7696 | -5/Extension | Discovered exit to Factory (range 10) 7779 | -5/Extension | Entered Cetus 7779 | -5/Cetus | Accompanied by 18 allies 7780 | -5/Cetus | Loaded intel: 24 machine locations 7784 | -5/Cetus | Acquired a Cetus Manufacturing Module code from A7 7812 | -5/Cetus | Spotted Cetus Guard 7818 | -5/Cetus | Spotted Cetus Guard 7820 | -5/Cetus | Spotted Cetus Guard 7822 | -5/Cetus | Allies destroyed Cetus Guard 7823 | -5/Cetus | Allies destroyed Cetus Guard 7823 | -5/Cetus | Allies destroyed Cetus Guard 7827 | -5/Cetus | Reached level 23 7830 | -5/Cetus | Upgraded with Utility slot (x1) 7841 | -5/Cetus | Started Cetus Manufacturing Module 7854 | -5/Cetus | Escorted A7 to Cetus Mainframe 7866 | -5/Cetus | Manufactured an Enhanced Grunt 7891 | -5/Cetus | Manufactured an Enhanced Grunt 7916 | -5/Cetus | Manufactured an Enhanced Grunt 7941 | -5/Cetus | Manufactured an Enhanced Grunt 7948 | -5/Cetus | Crushed by falling debris 7948 | -5/Cetus | Crushed by falling debris 7966 | -5/Cetus | Manufactured an Enhanced Grunt 7971 | -5/Cetus | Found a strange terminal 8036 | -5/Cetus | Discovered new exit (range 16) 8079 | -5/Cetus | Spotted Cetus Guard 8079 | -5/Cetus | Spotted Cetus Guard 8079 | -5/Cetus | Spotted Cetus Guard 8079 | -5/Cetus | Spotted Cetus Guard 8084 | -5/Cetus | Allies destroyed Cetus Guard 8088 | -5/Cetus | Allies destroyed Cetus Guard 8091 | -5/Cetus | Allies destroyed Cetus Guard 8094 | -5/Cetus | Discovered exit to Factory (range 17) 8095 | -5/Cetus | Destroyed Cetus Guard 8111 | -5/Cetus | Met Revision 17 8119 | -5/Cetus | Destroyed Revision 17 8135 | -5/Cetus | Identified exit to Archives 8182 | -5/Cetus | Entered Archives 8182 | -5/Archives | Accompanied by 13 allies 8183 | -5/Archives | Loaded intel: 8 machine locations 8187 | -5/Archives | Received a hacking code to weaken MAIN.C 8189 | -5/Archives | Unable to access archive contents 8190 | -5/Archives | Discovered exit to Factory (range 15) 8202 | -5/Archives | Unable to access archive contents 8203 | -5/Archives | Discovered new exit (range 17) 8205 | -5/Archives | Unable to access archive contents 8206 | -5/Archives | Discovered new exit (range 16) 8208 | -5/Archives | Unable to access archive contents 8212 | -5/Archives | Unable to access archive contents 8243 | -5/Archives | Identified exit to Hub_04(d) 8283 | -5/Archives | Entered Hub_04(d) 8283 | -5/Hub_04(d) | Accompanied by 11 allies 8284 | -5/Hub_04(d) | Loaded intel: 74 machine locations 8357 | -5/Hub_04(d) | Discovered exit to Factory (range 16) 8374 | -5/Hub_04(d) | Reached level 24 8385 | -5/Hub_04(d) | Discovered exit to Factory (range 9) 8466 | -5/Hub_04(d) | Garrison activated, responded to threat 8476 | -5/Hub_04(d) | Discovered exit to Factory (range 12) 8482 | -5/Hub_04(d) | Spotted B-75 Beast 8514 | -5/Hub_04(d) | Network Hub disabled 8526 | -5/Hub_04(d) | Destroyed B-75 Beast 8576 | -5/Hub_04(d) | Intercept squad dispatched 8582 | -5/Hub_04(d) | Spotted Tracker 8584 | -5/Hub_04(d) | Entered Factory 8584 | -4/Factory | Accompanied by 2 allies 8585 | -4/Factory | Loaded intel: 280 machine locations 8586 | -4/Factory | Reached level 25 8586 | -4/Factory | Upgraded with Utility slot (x1) 8687 | -4/Factory | Identified exit to Upper Caves 8687 | -4/Factory | Identified exit to Armory 8691 | -4/Factory | Central database locked down 8750 | -4/Factory | Intercept squad dispatched 8763 | -4/Factory | Spotted Tracker 8763 | -4/Factory | Spotted Tracker 8776 | -4/Factory | Spotted Combat Programmer 8782 | -4/Factory | Core integrity fell below 50% 8789 | -4/Factory | Core integrity fell below 20% 8792 | -4/Factory | Destroyed by Combat Programmer with EMDS Last Messages --------------- 08750_ K-01 Serf collects debris. 08763_ Nuclear Reactor detonated. 08763_ Destroyed Prototype Energy Gun. 08763_ Destroyed Lrn. Sensor Array. 08764_ Director 7a reports 0b10 security level has risen to 1. 08764_ Imp. Cesium-ion Thruster temporarily disabled. 08778_ Xenon Bombardment Thruster temporarily disabled. 08779_ Upgraded: Core Integrity (+150) 08781_ Ripper follow-up attack on Combat Programmer. 08781_ Mak. Spear follow-up attack on Combat Programmer. 08781_ Ripper follow-up attack on Combat Programmer. 08781_ Centrium Medium Armor Plating severed. 08781_ Penetrated by EMDS Slug. 08781_ Tracker suffers critical hit. 08784_ Penetrated by EMDS Slug. 08785_ Ripper follow-up attack on Combat Programmer. 08787_ Penetrated by EMDS Slug. 08787_ Tracker suffers critical hit. 08787_ Tracker destroyed. 08789_ Penetrated by EMDS Slug. Map ----- +----------------------------------------------------+ | #?## # # ## # | | ##?# = ########## ###### ## ! # | | ##### #############+######## ## # k | | ###?# # # ### # ]# | | #?#?# + """ # + + " | | ##### # """ # """" ### # ""# k | | ##### """ # """" ####### T"# | | u ##### # """" [####?## ""####### | | "" u " """" ####?## ####?#? | | "" u ^ " ####?########???#? | | " u u # #####?###?#?###?#? | | ############??##?# | | ######u# ##############?####?##?### | | ######## ??#############?##?#??### | | ?##?# ?# / #? #########?#######?#????# | | ?##??### [[ ###########?############### | | ???###?# [[ Y#####??#######?######??#?# | | ??############## # ## ;###########?#####?##?###? | | ###?############?######## #####?##?###? | | ###??##?##########?#?####%"""" """" #?########### | | #???#?########?#####?#### """" """" ######?#??#?? | | ##?###?################## """" """" ######?#??#?? | | ??#?###################?# """" """" ####?#?##?#?? | | ????? ? ?######?######## """" """" ??#??####????? | | ? ?? ? ####??####?#?##!"""" """" ######?#????? | | """?"""" ??#?#?###??####@ #######?#??#? | | """?""""??###??###?###### #?#??###????# | | """?"""" #############?#p s #?#???#?????? | | """?"""" ?#?####?###?#### ! #???#??#????? | | ?? ?? ?? #??##????##?### # ? ?? ?????? | | """?"""" #??#####?#?#?########+#+####??##?# ????? | | """?"""" ?+ ?? ? ? ? ? ####?###???????? | | """?"""" ?##?#?#?####?#?##? ?? # ???? ? ??????? | | """?"""" #????########### ? ? # ?""" """?""??? | | ????????? #?####?##???#??#?#??????? """?"""?Y"??? | | ????????#?#?#??#? ?? ? ?? #? #??"""?"""?""??? | | ????????????#??? ? ? ?? ?? # ? ???????? | | ??????????#??#?#?? ? ? ?? # ???#???#?????????? | | ??????????????#? ? """ ??? ?? ?????!???????? | | ????????????#??? ??? """??? #? ?? ??? ???????????? | | ????????????##??? ?""" ???+??""" """???????????? | | ??????????????????? ?? ? ? ?#??""" """???????????? | | ???????????????? ????"""? ???? """?"""???????????? | | ????????????????? ???"""????#? """???????????????? | | ?????????????????????""" ????????????????????????? | | ?????????????????????????????????????????????????? | | ?????????????????????????????????????????????????? | | ?????????????????????????????????????????????????? | | ???????????????????????????????????????????"Y"???? | | ???????????????????????????????????????????"""???? | +----------------------------------------------------+ Best States ------------- Heat Dissipation 61 Energy Generation 36 Energy Capacity 430 Matter Stores 300 Matter Capacity 300 Sight Range 17 Robot Scan Range 8 Terrain Scan Range 20 Terrain Scan Density 310 Armor Coverage 225 Melee Speed Boost 20 Evasion (%) 69 Melee Accuracy 20 Offensive Hacking 50 Defensive Hacking 55 Item Schematics ----------------- Hacking Suite | -8/Materials | Hacked Lgt. Armor Plating | -8/Materials | Scanalyzed Airjet | -8/Materials | Scanalyzed System Backup Module | -8/Materials | Scanalyzed Shield Generator | -8/Materials | Scanalyzed Powered Armor | -7/Factory | Hacked Combat Drone Bay | -7/Data Miner | Free Lgt. Regenerative Plating | -7/Data Miner | Free Triangulator | -7/Data Miner | Free Exp. Sensor Array | -7/Data Miner | Free Exp. Terrain Scan Processor | -7/Data Miner | Free Plasma Sword | -7/Data Miner | Free Kinetic Spear | -7/Data Miner | Free Adv. Transmission Jammer | -6/Factory | Hacked Exp. Signal Interpreter | -6/Factory | Scanalyzed Power Sword | -6/Factory | Hacked Imp. Actuator Array | -6/Factory | Hacked Adv. Melee Analysis Suite | -6/Factory | Hacked Lrn. Terrain Scanner | -6/Factory | Hacked Imp. System Backup Module | -6/Factory | Hacked Imp. Shield Generator | -6/Factory | Hacked Imp. Arc Projector | -6/Factory | Hacked Gravmag Array | -6/Factory | Hacked Imp. Overload Regulator | -5/Factory | Hacked Exp. Terrain Scanner | -5/Factory | Hacked Myomer Leg | -5/Factory | Hacked Hvy. Phase Cannon | -5/Factory | Hacked Imp. Powered Armor | -5/Factory | Hacked Nanoactuators | -5/Factory | Hacked Quantum Rifle | -5/Factory | Hacked Imp. Shock Absorption System | -5/Factory | Hacked Cld. Deuterium Engine | -5/Factory | Hacked Cld. Cesium-ion Thruster | -5/Factory | Hacked Cld. VTOL Module | -5/Factory | Hacked Exp. Targeting Computer | -5/Factory | Hacked Adv. Shield Generator | -5/Factory | Hacked Imp. Remote Shield | -5/Extension | Hacked Exp. Cesium-ion Thruster | -5/Extension | Hacked Biometal Leg | -5/Extension | Hacked Adv. Actuator Array | -5/Extension | Hacked Exp. Heat Sink | -5/Extension | Hacked F-cell Engine | -5/Extension | Hacked Gamma Bomb Array | -5/Extension | Hacked Nova Cannon | -5/Extension | Hacked Field Propulsion Array | -5/Extension | Hacked Impulse Thruster Array | -5/Extension | Hacked Remote Force Field | -5/Extension | Hacked Mni. Drone Bay | -5/Extension | Hacked Imp. Plasma Cutter | -5/Extension | Hacked Point Defense System | -5/Extension | Hacked Exp. Utility Shielding | -5/Cetus | Hacked Adv. System Shield | -5/Hub_04(d) | Hacked Imp. Phase Shifter | -5/Hub_04(d) | Hacked Imp. Gyrokinetic Inverter | -5/Hub_04(d) | Hacked Linear Accelerator | -5/Hub_04(d) | Hacked Hvy. Disruptor Cannon | -5/Hub_04(d) | Hacked Cmb. Gravmag System | -5/Hub_04(d) | Hacked Impulse Thruster | -4/Factory | Hacked Exp. Hacking Suite | -4/Factory | Hacked Exp. System Shield | -4/Factory | Hacked Vibroblade | -4/Factory | Hacked Exp. Melee Analysis Suite | -4/Factory | Hacked Lgt. Quantum Reactor | -4/Factory | Hacked Cmb. Linear Gravjet | -4/Factory | Hacked Adv. Variable Charge Gun | -4/Factory | Scanalyzed Robot Schematics ------------------ O-24 Administrator | -8/Materials | Hacked S-27 Virus | -7/Data Miner | Free G-50 Soldier | -7/Data Miner | Free G-67 Veteran | -7/Data Miner | Free L-41 Fighter | -7/Data Miner | Free X-72 Disruptor | -7/Data Miner | Free H-66 Slayer | -7/Data Miner | Free P-70 Sage | -7/Data Miner | Free I-36 Angel | -7/Data Miner | Free R-06 Scavenger | -6/Factory | Hacked Y-54 Guardian | -6/Factory | Hacked O-16 Technician | -6/Factory | Hacked A-02 Transporter | -5/Factory | Hacked D-63 Destroyer | -5/Factory | Hacked Fabricated ------------ Powered Armor | x2 | -7/Factory Imp. Powered Armor | x1 | -5/Factory Alien Tech Used ----------------- Core Expander Achievements -------------- None Challenges ------------ None RPGLIKE | -11 -10 -10 -10 -9 -8 -8 -8 -8 -7 -7 -7 -7 -6 -6 -6 -6 -5 -5 -5 -5 -5 -4 --------- Run | Scr Mat Min Exi Min Mat Gar Mat Gar Fac Low Low Dat Pro Fac Low Low Fac Ext Cet Arc Hub Fac Levels Raised 24 | . 1 . . 1 6 1 2 . 2 1 . 1 1 1 1 . 1 2 1 . 1 1 XP Earned 39816 | 3000 1580 500 350 1450 9111 1732 2025 481 2964 1122 320 1098 2110 1669 664 519 1959 2838 1312 383 1222 1407 XP Spent 38925 | 2900 870 . . 1900 9310 1400 3000 . 3100 270 . 2300 . . 2600 . 2900 1450 3200 . . 3725 Upgrades 55 | 10 2 . . 2 14 4 2 . 3 5 . 1 . . 1 . 1 5 1 . . 4 Power Slot 1 | . . . . . 1 . . . . . . . . . . . . . . . . . Propulsion Slot 3 | 1 . . . . 1 . . . 1 . . . . . . . . . . . . . Utility Slot 11 | 1 1 . . 1 2 . 1 . . . . 1 . . 1 . 1 . 1 . . 1 Weapon Slot 5 | 1 . . . 1 2 . . . 1 . . . . . . . . . . . . . Core Integrity 7 | . . . . . . . . . . 4 . . . . . . . . . . . 3 Heat Dissipation 4 | 1 1 . . . 1 . . . . 1 . . . . . . . . . . . . Energy Generation 1 | . . . . . . . . . 1 . . . . . . . . . . . . . Energy Storage 1 | . . . . . 1 . . . . . . . . . . . . . . . . . Mass Support 3 | 1 . . . . 1 . . . . . . . . . . . . 1 . . . . Inventory Capacity 4 | 2 . . . . 1 . 1 . . . . . . . . . . . . . . . Sight Range 1 | 1 . . . . . . . . . . . . . . . . . . . . . . Sensor Range 4 | . . . . . . . . . . . . . . . . . . 4 . . . . Terrain Scan Density 3 | . . . . . 3 . . . . . . . . . . . . . . . . . Melee Accuracy 4 | . . . . . . 4 . . . . . . . . . . . . . . . . Hack Attack % 1 | 1 . . . . . . . . . . . . . . . . . . . . . . Hack Defense % 2 | 1 . . . . 1 . . . . . . . . . . . . . . . . . Protomatter Created 3792 | . 104 . . 82 1068 65 349 131 60 241 4 175 263 19 314 198 . 454 65 . 200 . Integrity Restored 8014 | . 242 . . 246 1912 188 529 176 278 350 . 525 781 57 489 454 . 972 303 . 512 . Core 6321 | . 159 . . 246 1755 137 346 129 227 239 . 525 691 57 269 351 . 580 246 . 364 . Parts 1693 | . 83 . . . 157 51 183 47 51 111 . . 90 . 220 103 . 392 57 . 148 . Protomatter Decayed 1956 | . 16 . . . 376 . 194 47 . 77 4 . 24 . 145 42 195 434 211 . 130 61 Game ------ Seed FlightPlasmaDoublenader Manual? 0 Play Time 03:59:04 Cumulative 125.6 hours Start 2020.07.29 @ 16:23:26 End 2020.07.30 @ 14:07:13 Sessions 7 Manual Loads 0 Difficulty Rogue Special Mode Winter2019/RPGLIKE Game No. 51 Rogue 51 Adventurer 0 Explorer 0 Win Type - Total 1 Types 0/0/0/1/0/0/0 Lore% 71 Gallery% 66 Achievement% 62 Wizard Run 0 Options --------- ASCII 0 Keyboard 0 Movement Numpad Keybinds 0 Fullscreen 1 Font 14/SmallcapsGlow Map View 84x54 Tactical HUD 1 Map Filters NONE Filters NONE Steam 1 RUN: ee5890a1-c067-4674-8575-9c1116be620c